fUSD/lending_fUSD_20250804
["ID","MTS","AMOUNT","RATE_DAILY","PERIOD"]
[377242429,1754306023798,-400.0,0.00041095,2]
[377242430,1754306023808,-500.49,0.00041095,2]
[377242431,1754306023817,-1400.57,0.00041095,2]
[377242432,1754306023827,-400.0,0.00041095,2]
[377242433,1754306023837,-1339.76,0.00041095,2]
[377242434,1754306023846,-3431.45,0.00041095,2]
[377242435,1754306023856,-1254.59,0.00041095,2]
[377242436,1754306023865,-1128.88,0.00041095,2]
[377242437,1754306023875,-16704.11,0.00041095,2]
[377242438,1754306023885,-1799.3,0.00041095,2]
[377242439,1754306024020,-4814.39,0.00041095,2]
[377242440,1754306024030,-400.0,0.00041095,2]
[377242441,1754306024039,-1494.19,0.00041095,2]
[377242442,1754306024049,-871.27,0.00041095,2]
[377242443,1754306024058,-1442.54,0.00041095,2]
[377242444,1754306024068,-2112.05,0.00041095,2]
[377242445,1754306024077,-525.6,0.00041095,2]
[377242446,1754306024087,-400.0,0.00041095,2]
[377242447,1754306024096,-2310.1,0.00041095,2]
[377242448,1754306024105,-953.11,0.00041095,2]
[377242449,1754306024114,-637.09,0.00041095,2]
[377242450,1754306024124,-571.02,0.00041095,2]
[377242451,1754306024133,-2192.65,0.00041095,2]
[377242452,1754306024142,-1651.01,0.00041095,2]
[377242453,1754306024152,-845.12,0.00041095,2]
[377242454,1754306024164,-958.06,0.00041095,2]
[377242455,1754306024174,-3310.33,0.00041095,2]
[377242456,1754306024183,-533.36,0.00041095,2]
[377242457,1754306024193,-1650.75,0.00041095,2]
[377242458,1754306024202,-781.29,0.00041095,2]
[377242459,1754306024211,-500.0,0.00041096,10]
[377242460,1754306024221,-150.0,0.00041096,10]
[377242461,1754306024230,-200.02,0.00041096,120]
[377242462,1754306024239,-4000.0,0.00041096,30]
[377242463,1754306024249,-1000.0,0.00041096,30]
[377242464,1754306024259,-1000.0,0.00041096,30]
[377242465,1754306024269,-750.0,0.00041096,30]
[377242466,1754306024278,-500.0,0.00041096,30]
[377242467,1754306024288,-500.0,0.00041096,30]
[377242468,1754306024297,-500.0,0.00041096,30]
[377242469,1754306024307,-500.0,0.00041096,30]
[377242470,1754306024317,-500.0,0.00041096,30]
[377242471,1754306024327,-500.0,0.00041096,30]
[377242472,1754306024337,-500.0,0.00041096,30]
[377242473,1754306024346,-500.0,0.00041096,30]
[377242474,1754306024355,-500.0,0.00041096,30]
[377242475,1754306024365,-500.0,0.00041096,30]
[377242476,1754306024374,-500.0,0.00041096,30]
[377242477,1754306024383,-500.0,0.00041096,30]
[377242478,1754306024393,-500.0,0.00041096,30]
[377242479,1754306024402,-500.0,0.00041096,30]
[377242480,1754306024411,-500.0,0.00041096,30]
[377242481,1754306024421,-500.0,0.00041096,30]
[377242482,1754306024431,-500.0,0.00041096,30]
[377242483,1754306024441,-500.0,0.00041096,30]
[377242484,1754306024450,-500.0,0.00041096,30]
[377242485,1754306024459,-500.0,0.00041096,30]
[377242486,1754306024469,-500.0,0.00041096,30]
[377242487,1754306024479,-500.0,0.00041096,30]
[377242488,1754306024488,-500.0,0.00041096,30]
[377242489,1754306024498,-1123.0,0.00041096,120]
[377242490,1754306024507,-500.0,0.00041096,30]
[377242491,1754306024516,-500.0,0.00041096,30]
[377242492,1754306024526,-500.0,0.00041096,30]
[377242493,1754306024535,-500.0,0.00041096,30]
[377242494,1754306024544,-500.0,0.00041096,30]
[377242495,1754306024554,-500.0,0.00041096,30]
[377242496,1754306024564,-500.0,0.00041096,30]
[377242497,1754306024573,-500.0,0.00041096,30]
[377242498,1754306024583,-500.0,0.00041096,30]
[377242499,1754306024593,-500.0,0.00041096,30]
[377242500,1754306024602,-500.0,0.00041096,30]
[377242501,1754306024611,-500.0,0.00041096,30]
[377242502,1754306024621,-500.0,0.00041096,30]
[377242503,1754306024630,-500.0,0.00041096,30]
[377242504,1754306024640,-500.0,0.00041096,30]
[377242505,1754306024649,-500.0,0.00041096,30]
[377242506,1754306024658,-500.0,0.00041096,30]
[377242507,1754306024667,-500.0,0.00041096,30]
[377242508,1754306024677,-500.0,0.00041096,30]
[377242509,1754306024688,-500.0,0.00041096,30]
[377242510,1754306024697,-500.0,0.00041096,30]
[377242511,1754306024706,-500.0,0.00041096,30]
[377242512,1754306024715,-500.0,0.00041096,30]
[377242513,1754306024725,-500.0,0.00041096,30]
[377242514,1754306024735,-500.0,0.00041096,30]
[377242515,1754306024750,-500.0,0.00041096,30]
[377242516,1754306024760,-500.0,0.00041096,30]
[377242517,1754306024770,-500.0,0.00041096,30]
[377242518,1754306024779,-282.0,0.00041096,30]
[377242519,1754306024788,-203.0,0.00041096,30]
[377242520,1754306024798,-500.0,0.00041096,30]
[377242521,1754306024809,-500.0,0.00041096,30]
[377242522,1754306024819,-500.0,0.00041096,30]
[377242523,1754306024828,-500.0,0.00041096,30]
[377242524,1754306024838,-500.0,0.00041096,30]
[377242525,1754306024847,-500.0,0.00041096,30]
[377242526,1754306024858,-500.0,0.00041096,30]
[377242527,1754306024868,-500.0,0.00041096,30]
[377242528,1754306024878,-500.0,0.00041096,30]
[377242529,1754306024890,-500.0,0.00041096,30]
[377242530,1754306024899,-500.0,0.00041096,30]
[377242531,1754306024910,-500.0,0.00041096,30]
[377242532,1754306024920,-500.0,0.00041096,30]
[377242533,1754306024929,-500.0,0.00041096,30]
[377242534,1754306024941,-500.0,0.00041096,30]
[377242535,1754306024952,-500.0,0.00041096,30]
[377242536,1754306024961,-500.0,0.00041096,30]
[377242537,1754306024970,-500.0,0.00041096,30]
[377242538,1754306024979,-500.0,0.00041096,30]
[377242539,1754306024988,-500.0,0.00041096,30]
[377242540,1754306024998,-500.0,0.00041096,30]
[377242541,1754306025010,-152.520638,0.000411,14]
[377242542,1754306025020,-900.0,0.000411,2]
[377242543,1754306025030,-590.0,0.000411,2]
[377242544,1754306025039,-152.0,0.00041101,5]
[377242545,1754306025048,-3000.0,0.00041112,10]
[377242546,1754306025060,-816.17110839,0.00041112,10]
[377242547,1754306025070,-391.0,0.0004114,30]
[377242548,1754306025080,-504.0,0.00041185,16]
[377242549,1754306025090,-62748.24,0.000412,14]
[377242550,1754306025101,-172.88,0.00041224,30]
[377242551,1754306025110,-150.0,0.00041224,30]
[377242552,1754306025122,-165.39,0.00041224,30]
[377242553,1754306025131,-299.67,0.00041224,30]
[377242554,1754306025140,-172.88,0.00041224,30]
[377242555,1754306025149,-536.97,0.00041224,30]
[377242556,1754306025158,-165.39,0.00041224,30]
[377242557,1754306025168,-165.39,0.00041224,30]
[377242558,1754306025177,-345.72,0.00041224,30]
[377242559,1754306025187,-165.39,0.00041224,30]
[377242560,1754306025196,-165.39,0.00041224,30]
[377242561,1754306025205,-330.74,0.00041224,30]
[377242562,1754306025214,-165.39,0.00041224,30]
[377242563,1754306025223,-165.39,0.00041224,30]
[377242564,1754306025232,-165.39,0.00041224,30]
[377242565,1754306025241,-2588.34,0.00041229,2]
[377242566,1754306025252,-3500.0,0.0004126,10]
[377242567,1754306025264,-1000.0,0.0004127,10]
[377242568,1754306025273,-1179.88,0.00041368,120]
[377242569,1754306025283,-400.0,0.00041369,2]
[377242570,1754306025292,-327.28276463,0.00041369,2]
[377242571,1754306025302,-547.58,0.00041369,2]
[377242572,1754306025311,-458.04,0.00041369,2]
[377242573,1754306025321,-1200.66,0.00041369,2]
[377242574,1754306025331,-520.3,0.00041369,2]
[377242575,1754306025339,-586.47,0.00041369,2]
[377242576,1754306025349,-400.0,0.00041369,2]
[377242577,1754306025358,-452.57,0.00041369,2]
[377242578,1754306025367,-1404.01,0.00041369,2]
[377242579,1754306025376,-400.0,0.00041369,2]
[377242580,1754306025385,-472.84,0.00041369,2]
[377242581,1754306025394,-1341.8,0.00041369,2]
[377242582,1754306025403,-180.0,0.00041369,2]
[377242583,1754306025412,-484.06,0.00041369,2]
[377242584,1754306025421,-667.41,0.00041369,2]
[377242585,1754306025430,-1693.03,0.00041369,2]
[377242586,1754306025438,-537.19,0.00041369,2]
[377242587,1754306025448,-849.99,0.00041369,2]
[377242588,1754306025457,-931.14,0.00041369,2]
[377242589,1754306025466,-458.07,0.00041369,2]
[377242590,1754306025475,-1076.15,0.00041369,2]
[377242591,1754306025484,-400.0,0.00041369,2]
[377242592,1754306025493,-1903.28,0.00041369,2]
[377242593,1754306025502,-400.0,0.00041369,2]
[377242594,1754306025511,-643.67,0.00041369,2]
[377242595,1754306025520,-1064.8,0.00041369,2]
[377242596,1754306025530,-595.01,0.00041369,2]
[377242597,1754306025539,-1756.29,0.00041369,2]
[377242598,1754306025549,-824.14,0.00041369,2]
[377242599,1754306025558,-1696.93,0.00041369,2]
[377242600,1754306025567,-400.0,0.00041369,2]
[377242601,1754306025577,-400.0,0.00041369,2]
[377242602,1754306025586,-767.86,0.00041369,2]
[377242603,1754306025596,-1492.28,0.00041369,2]
[377242604,1754306025605,-400.0,0.00041369,2]
[377242605,1754306025615,-400.0,0.00041369,2]
[377242606,1754306025625,-400.0,0.00041369,2]
[377242607,1754306025636,-661.87,0.00041369,2]
[377242608,1754306025645,-400.0,0.00041369,2]
[377242609,1754306025655,-400.0,0.00041369,2]
[377242610,1754306025664,-400.45,0.00041369,2]
[377242611,1754306025674,-1939.24,0.00041369,2]
[377242612,1754306025685,-786.11,0.00041369,2]
[377242613,1754306025694,-835.46,0.00041369,2]
[377242614,1754306025706,-1820.66,0.00041369,2]
[377242615,1754306025716,-463.48,0.00041369,2]
[377242616,1754306025727,-400.0,0.00041369,2]
[377242617,1754306025737,-1385.33,0.00041369,2]
[377242618,1754306025746,-499.13,0.00041369,2]
[377242619,1754306025755,-498.89,0.00041369,2]
[377242620,1754306025764,-1516.62,0.00041369,2]
[377242621,1754306025774,-400.0,0.00041369,2]
[377242622,1754306025786,-400.0,0.00041369,2]
[377242623,1754306025796,-199.13749259,0.00041369,2]
[377242624,1754306025805,-400.0,0.00041369,2]
[377242625,1754306025815,-900.0,0.00041369,2]
[377242626,1754306025824,-550.11,0.00041369,2]
[377242627,1754306025833,-465.84293899,0.00041369,2]
[377242628,1754306025843,-1067.05,0.00041369,2]
[377242629,1754306025852,-454.35,0.00041369,2]
[377242630,1754306025861,-915.17,0.00041369,2]
[377242631,1754306025870,-1153.57,0.00041369,2]
[377242632,1754306025879,-400.0,0.00041369,2]
[377242633,1754306025888,-470.47,0.00041369,2]
[377242634,1754306025897,-400.0,0.00041369,2]
[377242635,1754306025906,-400.0,0.00041369,2]
[377242636,1754306025917,-1488.11,0.00041369,2]
[377242637,1754306025926,-742.88,0.00041369,2]
[377242638,1754306025936,-661.14,0.00041369,2]
[377242639,1754306025947,-441.54,0.00041369,2]
[377242640,1754306025956,-916.79,0.00041369,2]
[377242641,1754306025965,-587.55,0.00041369,2]
[377242642,1754306025975,-424.37,0.00041369,2]
[377242643,1754306025984,-1102.43,0.00041369,2]
[377242644,1754306025993,-400.0,0.00041369,2]
[377242645,1754306026002,-1819.37,0.00041369,2]
[377242646,1754306026011,-1188.91,0.00041369,2]
[377242647,1754306026021,-439.11,0.00041369,2]
[377242648,1754306026031,-400.0,0.00041369,2]
[377242649,1754306026041,-522.83265674,0.00041369,2]
[377242650,1754306026050,-1119.27,0.00041369,2]
[377242651,1754306026059,-400.0,0.00041369,2]
[377242652,1754306026069,-884.11,0.00041369,2]
[377242653,1754306026079,-465.18,0.00041369,2]
[377242654,1754306026088,-400.0,0.00041369,2]
[377242655,1754306026097,-1124.7,0.00041369,2]
[377242656,1754306026107,-953.16,0.00041369,2]
[377242657,1754306026116,-400.0,0.00041369,2]
[377242658,1754306026126,-449.54,0.00041369,2]
[377242659,1754306026135,-400.0,0.00041369,2]
[377242660,1754306026144,-1903.44,0.00041369,2]
[377242661,1754306026154,-977.67,0.00041369,2]
[377242662,1754306026164,-2558.85,0.00041369,2]
[377242663,1754306026174,-400.0,0.00041369,2]
[377242664,1754306026183,-480.36,0.00041369,2]
[377242665,1754306026192,-2716.06,0.00041369,2]
[377242666,1754306026202,-400.0,0.00041369,2]
[377242667,1754306026211,-1797.0,0.00041369,2]
[377242668,1754306026220,-400.0,0.00041369,2]
[377242669,1754306026230,-1399.58,0.00041369,2]
[377242670,1754306026241,-459.32,0.00041369,2]
[377242671,1754306026251,-2022.23,0.00041369,2]
[377242672,1754306026260,-687.73,0.00041369,2]
[377242673,1754306026270,-400.0,0.00041369,2]
[377242674,1754306026280,-452.62,0.00041369,2]
[377242675,1754306026293,-1027.4,0.00041369,2]
[377242676,1754306026304,-400.0,0.00041369,2]
[377242677,1754306026314,-4159.78,0.00041369,2]
[377242678,1754306026325,-743.48,0.00041369,2]
[377242679,1754306026334,-500.0,0.00041369,2]
[377242680,1754306026344,-400.0,0.00041369,2]
[377242681,1754306026353,-400.0,0.00041369,2]
[377242682,1754306026363,-474.0293894,0.00041369,2]
[377242683,1754306026373,-1103.2,0.00041369,2]
[377242684,1754306026383,-2146.76,0.00041369,2]
[377242685,1754306026394,-400.0,0.00041369,2]
[377242686,1754306026403,-697.9,0.00041369,2]
[377242687,1754306026414,-700.27,0.00041369,2]
[377242688,1754306026424,-500.0,0.00041369,2]
[377242689,1754306026433,-1197.92,0.00041369,2]
[377242690,1754306026443,-400.0,0.00041369,2]
[377242691,1754306026452,-442.05,0.00041369,2]
[377242692,1754306026462,-400.0,0.00041369,2]
[377242693,1754306026471,-763.21,0.00041369,2]
[377242694,1754306026481,-664.53,0.00041369,2]
[377242695,1754306026491,-862.35,0.00041369,2]
[377242696,1754306026506,-624.93,0.00041369,2]
[377242697,1754306026515,-793.15,0.00041369,2]
[377242698,1754306026524,-639.19,0.00041369,2]
[377242699,1754306026534,-400.0,0.00041369,2]
[377242700,1754306026543,-605.24,0.00041369,2]
[377242701,1754306026553,-400.0,0.00041369,2]
[377242702,1754306026562,-2472.68,0.00041369,2]
[377242703,1754306026572,-1841.68,0.00041369,2]
[377242704,1754306026581,-1091.38,0.00041369,2]
[377242705,1754306026591,-569.15,0.00041369,2]
[377242706,1754306026600,-482.87,0.00041369,2]
[377242707,1754306026609,-400.0,0.00041369,2]
[377242708,1754306026618,-1179.1,0.00041369,2]
[377242709,1754306026627,-400.0,0.00041369,2]
[377242710,1754306026636,-1320.13,0.00041369,2]
[377242711,1754306026645,-1348.28,0.00041369,2]
[377242712,1754306026654,-908.97,0.00041369,2]
[377242713,1754306026664,-1407.62,0.00041369,2]
[377242714,1754306026673,-1144.27,0.00041369,2]
[377242715,1754306026682,-448.56,0.00041369,2]
[377242716,1754306026692,-400.0,0.00041369,2]
[377242717,1754306026701,-853.71,0.00041369,2]
[377242718,1754306026710,-609.84,0.00041369,2]
[377242719,1754306026719,-400.0,0.00041369,2]
[377242720,1754306026729,-1274.99,0.00041369,2]
[377242721,1754306026738,-600.02,0.00041369,2]
[377242722,1754306026749,-800.16,0.00041369,2]
[377242723,1754306026758,-2778.93,0.00041369,2]
[377242724,1754306026768,-787.7,0.00041369,2]
[377242725,1754306026777,-500.6,0.00041369,2]
[377242726,1754306026786,-499.94,0.00041369,2]
[377242727,1754306026801,-627.38,0.00041369,2]
[377242728,1754306026811,-461.32,0.00041369,2]
[377242729,1754306026820,-1107.49,0.00041369,2]
[377242730,1754306026830,-400.0,0.00041369,2]
[377242731,1754306026839,-400.0,0.00041369,2]
[377242732,1754306026849,-1182.54,0.00041369,2]
[377242733,1754306026859,-2273.69,0.00041369,2]
[377242734,1754306026868,-790.39,0.00041369,2]
[377242735,1754306026878,-400.0,0.00041369,2]
[377242736,1754306026887,-400.0,0.00041369,2]
[377242737,1754306026897,-461.7,0.00041369,2]
[377242738,1754306026906,-2544.09,0.00041369,2]
[377242739,1754306026915,-400.0,0.00041369,2]
[377242740,1754306026924,-746.2,0.00041369,2]
[377242741,1754306026933,-1066.14,0.00041369,2]
[377242742,1754306026942,-513.6,0.00041369,2]
[377242743,1754306026953,-856.62,0.00041369,2]
[377242744,1754306026964,-445.82,0.00041369,2]
[377242745,1754306026973,-1070.42,0.00041369,2]
[377242746,1754306026983,-548.68,0.00041369,2]
[377242747,1754306026992,-400.0,0.00041369,2]
[377242748,1754306027002,-413.36,0.00041369,2]
[377242749,1754306027012,-400.0,0.00041369,2]
[377242750,1754306027022,-460.79,0.00041369,2]
[377242751,1754306027035,-865.19,0.00041369,2]
[377242752,1754306027046,-1968.28,0.00041369,2]
[377242753,1754306027056,-1119.16,0.00041369,2]
[377242754,1754306027066,-1422.91,0.00041369,2]
[377242755,1754306027075,-400.0,0.00041369,2]
[377242756,1754306027085,-382.03112766,0.00041369,2]
[377242757,1754306027095,-1000.0,0.00041369,2]
[377242758,1754306027106,-1354.16,0.00041369,2]
[377242759,1754306027116,-625.15,0.00041369,2]
[377242760,1754306027125,-400.0,0.00041369,2]
[377242761,1754306027134,-1598.25,0.00041369,2]
[377242762,1754306027144,-1192.41,0.00041369,2]
[377242763,1754306027153,-400.0,0.00041369,2]
[377242764,1754306027165,-400.0,0.00041369,2]
[377242765,1754306027175,-668.58,0.00041369,2]
[377242766,1754306027185,-575.89,0.00041369,2]
[377242767,1754306027194,-400.0,0.00041369,2]
[377242768,1754306027204,-1116.34,0.00041369,2]
[377242769,1754306027214,-1214.62,0.00041369,2]
[377242770,1754306027224,-1137.04,0.00041369,2]
[377242771,1754306027233,-400.0,0.00041369,2]
[377242772,1754306027243,-300.68354095,0.00041369,2]
[377242773,1754306027252,-1590.64,0.00041369,2]
[377242774,1754306027262,-198.78201925,0.00041369,2]
[377242775,1754306027271,-400.0,0.00041369,2]
[377242776,1754306027281,-1138.57,0.00041369,2]
[377242777,1754306027290,-1069.29,0.00041369,2]
[377242778,1754306027300,-400.0,0.00041369,2]
[377242779,1754306027309,-400.0,0.00041369,2]
[377242780,1754306027319,-400.0,0.00041369,2]
[377242781,1754306027329,-400.0,0.00041369,2]
[377242782,1754306027338,-400.0,0.00041369,2]
[377242783,1754306027348,-1131.33,0.00041369,2]
[377242784,1754306027358,-1171.06,0.00041369,2]
[377242785,1754306027368,-894.77,0.00041369,2]
[377242786,1754306027378,-1384.7,0.00041369,2]
[377242787,1754306027388,-599.89,0.00041369,2]
[377242788,1754306027397,-2355.79,0.00041369,2]
[377242789,1754306027406,-1091.28,0.00041369,2]
[377242790,1754306027416,-400.0,0.00041369,2]
[377242791,1754306027425,-400.0,0.00041369,2]
[377242792,1754306027436,-2327.34,0.00041369,2]
[377242793,1754306027446,-781.86,0.00041369,2]
[377242794,1754306027455,-501.83,0.00041369,2]
[377242795,1754306027464,-773.66,0.00041369,2]
[377242796,1754306027474,-1915.51,0.00041369,2]
[377242797,1754306027483,-892.62,0.00041369,2]
[377242798,1754306027493,-400.0,0.00041369,2]
[377242799,1754306027502,-829.75,0.00041369,2]
[377242800,1754306027512,-538.38,0.00041369,2]
[377242801,1754306027521,-1000.94,0.00041369,2]
[377242802,1754306027531,-1098.02,0.00041369,2]
[377242803,1754306027540,-1453.05,0.00041369,2]
[377242804,1754306027550,-695.84,0.00041369,2]
[377242805,1754306027559,-437.7,0.00041369,2]
[377242806,1754306027571,-1242.82,0.00041369,2]
[377242807,1754306027580,-724.66,0.00041369,2]
[377242808,1754306027590,-1119.1,0.00041369,2]
[377242809,1754306027600,-1165.58,0.00041369,2]
[377242810,1754306027610,-917.85,0.00041369,2]
[377242811,1754306027620,-2290.17,0.00041369,2]
[377242812,1754306027629,-400.0,0.00041369,2]
[377242813,1754306027639,-1308.63,0.00041369,2]
[377242814,1754306027651,-801.64,0.00041369,2]
[377242815,1754306027660,-906.75,0.00041369,2]
[377242816,1754306027670,-400.0,0.00041369,2]
[377242817,1754306027679,-564.37,0.00041369,2]
[377242818,1754306027689,-918.46,0.00041369,2]
[377242819,1754306027699,-1397.01,0.00041369,2]
[377242820,1754306027708,-2104.64,0.00041369,2]
[377242821,1754306027718,-1040.59,0.00041369,2]
[377242822,1754306027727,-1334.51,0.00041369,2]
[377242823,1754306027737,-781.51,0.00041369,2]
[377242824,1754306027746,-1874.18,0.00041369,2]
[377242825,1754306027756,-1353.35,0.00041369,2]
[377242826,1754306027766,-1021.01,0.00041369,2]
[377242827,1754306027775,-400.0,0.00041369,2]
[377242828,1754306027784,-400.0,0.00041369,2]
[377242829,1754306027794,-1025.08,0.00041369,2]
[377242830,1754306027804,-627.8,0.00041369,2]
[377242831,1754306027813,-1868.95,0.00041369,2]
[377242832,1754306027822,-468.7,0.00041369,2]
[377242833,1754306027832,-914.79,0.00041369,2]
[377242834,1754306027841,-1387.83,0.00041369,2]
[377242835,1754306027850,-925.88,0.00041369,2]
[377242836,1754306027860,-1314.14,0.00041369,2]
[377242837,1754306027869,-1038.98,0.00041369,2]
[377242838,1754306027879,-1014.44,0.00041369,2]
[377242839,1754306027889,-935.88,0.00041369,2]
[377242840,1754306027898,-400.0,0.00041369,2]
[377242841,1754306027908,-590.39,0.00041369,2]
[377242842,1754306027917,-1614.1,0.00041369,2]
[377242843,1754306027926,-710.0,0.00041369,2]
[377242844,1754306027936,-1412.5,0.00041369,2]
[377242845,1754306027946,-608.78,0.00041369,2]
[377242846,1754306027959,-400.0,0.00041369,2]
[377242847,1754306027969,-1252.59,0.00041369,2]
[377242848,1754306027979,-400.0,0.00041369,2]
[377242849,1754306027990,-856.19,0.00041369,2]
[377242850,1754306028000,-1142.6,0.00041369,2]
[377242851,1754306028010,-695.98,0.00041369,2]
[377242852,1754306028019,-400.0,0.00041369,2]
[377242853,1754306028028,-400.0,0.00041369,2]
[377242854,1754306028038,-793.48,0.00041369,2]
[377242855,1754306028048,-810.9,0.00041369,2]
[377242856,1754306028057,-1752.3,0.00041369,2]
[377242857,1754306028067,-400.0,0.00041369,2]
[377242858,1754306028078,-1639.2,0.00041369,2]
[377242859,1754306028087,-1899.23,0.00041369,2]
[377242860,1754306028097,-1057.57,0.00041369,2]
[377242861,1754306028106,-400.0,0.00041369,2]
[377242862,1754306028115,-1894.1,0.00041369,2]
[377242863,1754306028125,-400.0,0.00041369,2]
[377242864,1754306028135,-463.23960432,0.00041369,2]
[377242865,1754306028145,-400.0,0.00041369,2]
[377242866,1754306028154,-1066.82,0.00041369,2]
[377242867,1754306028285,-1326.33,0.00041369,2]
[377242868,1754306028297,-405.69,0.00041369,2]
[377242869,1754306028307,-1189.48,0.00041369,2]
[377242870,1754306028317,-1704.15,0.00041369,2]
[377242871,1754306028327,-1046.61,0.00041369,2]
[377242872,1754306028337,-400.0,0.00041369,2]
[377242873,1754306028346,-833.04,0.00041369,2]
[377242874,1754306028356,-400.0,0.00041369,2]
[377242875,1754306028366,-684.99,0.00041369,2]
[377242876,1754306028375,-400.0,0.00041369,2]
[377242877,1754306028384,-925.69,0.00041369,2]
[377242878,1754306028394,-482.48,0.00041369,2]
[377242879,1754306028404,-596.8,0.00041369,2]
[377242880,1754306028413,-1463.3,0.00041369,2]
[377242881,1754306028423,-1295.25,0.00041369,2]
[377242882,1754306028433,-2145.64,0.00041369,2]
[377242883,1754306028443,-1612.63,0.00041369,2]
[377242884,1754306028453,-1283.66,0.00041369,2]
[377242885,1754306028463,-758.52,0.00041369,2]
[377242886,1754306028473,-721.69,0.00041369,2]
[377242887,1754306028484,-988.46,0.00041369,2]
[377242888,1754306028494,-7192.74,0.00041369,2]
[377242889,1754306028504,-896.0,0.00041369,2]
[377242890,1754306028514,-766.66,0.00041369,2]
[377242891,1754306028523,-453.42,0.00041369,2]
[377242892,1754306028533,-627.97,0.00041369,2]
[377242893,1754306028543,-400.0,0.00041369,2]
[377242894,1754306028553,-400.0,0.00041369,2]
[377242895,1754306028564,-1762.88,0.00041369,2]
[377242896,1754306028574,-1472.33,0.00041369,2]
[377242897,1754306028584,-400.0,0.00041369,2]
[377242898,1754306028593,-400.0,0.00041369,2]
[377242899,1754306028603,-1303.02,0.00041369,2]
[377242900,1754306028614,-796.7,0.00041369,2]
[377242901,1754306028624,-1414.12,0.00041369,2]
[377242902,1754306028634,-700.57,0.00041369,2]
[377242903,1754306028643,-986.33,0.00041369,2]
[377242904,1754306028654,-553.07,0.00041369,2]
[377242905,1754306028663,-658.58,0.00041369,2]
[377242906,1754306028674,-400.0,0.00041369,2]
[377242907,1754306028684,-400.0,0.00041369,2]
[377242908,1754306028694,-499.21,0.00041369,2]
[377242909,1754306028704,-1836.51,0.00041369,2]
[377242910,1754306028715,-1050.51,0.00041369,2]
[377242911,1754306028725,-682.1,0.00041369,2]
[377242912,1754306028735,-739.68,0.00041369,2]
[377242913,1754306028745,-1274.01,0.00041369,2]
[377242914,1754306028755,-400.0,0.00041369,2]
[377242915,1754306028764,-651.05,0.00041369,2]
[377242916,1754306028773,-1321.92,0.00041369,2]
[377242917,1754306028783,-1303.02,0.00041369,2]
[377242918,1754306028794,-400.0,0.00041369,2]
[377242919,1754306028803,-822.07,0.00041369,2]
[377242920,1754306028814,-999.83,0.00041369,2]
[377242921,1754306028824,-1091.32,0.00041369,2]
[377242922,1754306028834,-400.0,0.00041369,2]
[377242923,1754306028844,-596.36,0.00041369,2]
[377242924,1754306028854,-562.8,0.00041369,2]
[377242925,1754306028864,-793.84,0.00041369,2]
[377242926,1754306028874,-1242.64,0.00041369,2]
[377242927,1754306028885,-1330.82,0.00041369,2]
[377242928,1754306028895,-558.09,0.00041369,2]